[Event "Titled Tuesday Blitz January 03 Early 2023"]
[White "TheKnightOfBosnia"]
[Black "Sharifov, Mekhriddin"]
[BlackFideId "14701545"]
[WhiteElo "2481"]
[BlackElo "2209"]
[Result "0-1"]
[Round "04"]
[TimeControl "180+2"]
[Date "2023.01.03"]
[WhiteClock "0:00:07"]
[BlackClock "0:00:10"]

1. e4 {[%clk 0:03:00]}  c5 {[%clk 0:02:58]} 2. Nf3 {[%clk 0:03:00]}  d6 {[%clk 0:02:58]} 3. Bb5+ {[%clk 0:03:01]}  Nd7 {[%clk 0:02:57]} 4. d4 {[%clk 0:03:01]}  cxd4 {[%clk 0:02:58]} 5. Qxd4 {[%clk 0:03:02]}  Nf6 {[%clk 0:02:57]} 6. Bg5 {[%clk 0:03:01]}  a6 {[%clk 0:02:56]} 7. Bxd7+ {[%clk 0:03:01]}  Bxd7 {[%clk 0:02:54]} 8. Bxf6 {[%clk 0:03:01]}  gxf6 {[%clk 0:02:55]} 9. Nc3 {[%clk 0:03:02]}  e6 {[%clk 0:02:55]} 10. Rd1 {[%clk 0:03:00]}  Qc7 {[%clk 0:02:51]} 11. O-O {[%clk 0:02:59]}  Be7 {[%clk 0:02:50]} 12. Rfe1 {[%clk 0:02:58]}  Rg8 {[%clk 0:02:47]} 13. Nh4 {[%clk 0:02:39]}  Qc5 {[%clk 0:02:40]} 14. Qxc5 {[%clk 0:02:29]}  dxc5 {[%clk 0:02:41]} 15. Nf3 {[%clk 0:02:26]}  Bc6 {[%clk 0:02:40]} 16. h3 {[%clk 0:02:23]}  Rd8 {[%clk 0:02:38]} 17. Kf1 {[%clk 0:02:19]}  b5 {[%clk 0:02:36]} 18. Rxd8+ {[%clk 0:02:12]}  Kxd8 {[%clk 0:02:37]} 19. Nd2 {[%clk 0:02:06]}  Kc7 {[%clk 0:02:34]} 20. Ke2 {[%clk 0:02:02]}  Rxg2 {[%clk 0:02:31]} 21. Kf3 {[%clk 0:01:57]}  Rg8 {[%clk 0:02:31]} 22. Ne2 {[%clk 0:01:40]}  Rd8 {[%clk 0:02:26]} 23. Ke3 {[%clk 0:01:37]}  Rg8 {[%clk 0:02:23]} 24. Rg1 {[%clk 0:01:36]}  Rg6 {[%clk 0:02:19]} 25. Rg4 {[%clk 0:01:30]}  Bf8 {[%clk 0:02:15]} 26. f4 {[%clk 0:01:22]}  Bb7 {[%clk 0:01:45]} 27. Nf3 {[%clk 0:01:12]}  Bxe4 {[%clk 0:01:35]} 28. Rh4 {[%clk 0:00:55]}  Bxf3 {[%clk 0:01:25]} 29. Kxf3 {[%clk 0:00:56]}  Rh6 {[%clk 0:01:26]} 30. Rxh6 {[%clk 0:00:54]}  Bxh6 {[%clk 0:01:26]} 31. f5 {[%clk 0:00:52]}  Kd6 {[%clk 0:01:22]} 32. Ke4 {[%clk 0:00:52]}  Bd2 {[%clk 0:01:16]} 33. b3 {[%clk 0:00:51]}  Be1 {[%clk 0:01:14]} 34. Nf4 {[%clk 0:00:49]}  Bh4 {[%clk 0:01:11]} 35. c4 {[%clk 0:00:45]}  Bg5 {[%clk 0:01:07]} 36. Nd3 {[%clk 0:00:33]}  Kc6 {[%clk 0:01:07]} 37. Nf2 {[%clk 0:00:24]}  Kb6 {[%clk 0:01:00]} 38. Nd3 {[%clk 0:00:23]}  Bd2 {[%clk 0:00:43]} 39. h4 {[%clk 0:00:16]}  Kc6 {[%clk 0:00:41]} 40. h5 {[%clk 0:00:17]}  Kb6 {[%clk 0:00:34]} 41. Nf2 {[%clk 0:00:15]}  Bg5 {[%clk 0:00:29]} 42. Nd3 {[%clk 0:00:15]}  h6 {[%clk 0:00:26]} 43. Nf2 {[%clk 0:00:14]}  Bd2 {[%clk 0:00:23]} 44. Nd3 {[%clk 0:00:14]}  Kc6 {[%clk 0:00:21]} 45. Nf2 {[%clk 0:00:14]}  Be1 {[%clk 0:00:19]} 46. Nd3 {[%clk 0:00:14]}  Bh4 {[%clk 0:00:19]} 47. Nf4 {[%clk 0:00:14]}  Kd6 {[%clk 0:00:18]} 48. Nd3 {[%clk 0:00:14]}  Bg3 {[%clk 0:00:18]} 49. Nc1 {[%clk 0:00:13]}  Ke7 {[%clk 0:00:15]} 50. Nd3 {[%clk 0:00:13]}  Bd6 {[%clk 0:00:15]} 51. Nf2 {[%clk 0:00:13]}  Kf8 {[%clk 0:00:14]} 52. Nd3 {[%clk 0:00:11]}  Kg7 {[%clk 0:00:14]} 53. a4 {[%clk 0:00:12]}  bxc4 {[%clk 0:00:12]} 54. bxc4 {[%clk 0:00:12]}  Kf8 {[%clk 0:00:13]} 55. Nf2 {[%clk 0:00:12]}  Bg3 {[%clk 0:00:11]} 56. Nd3 {[%clk 0:00:10]}  Bd6 {[%clk 0:00:11]} 57. Nf2 {[%clk 0:00:10]}  Be5 {[%clk 0:00:11]} 58. Nd3 {[%clk 0:00:09]}  Bd4 {[%clk 0:00:11]} 59. Nf4 {[%clk 0:00:08]}  Ke7 {[%clk 0:00:11]} 60. Ne2 {[%clk 0:00:08]}  Kd6 {[%clk 0:00:10]} 61. Nf4 {[%clk 0:00:06]}  Be5 {[%clk 0:00:07]} 62. Nd3 {[%clk 0:00:06]}  Bd4 {[%clk 0:00:08]} 63. Nf4 {[%clk 0:00:06]}  Kd7 {[%clk 0:00:05]} 64. Nd3 {[%clk 0:00:05]}  Kc6 {[%clk 0:00:05]} 65. Nf4 {[%clk 0:00:05]}  exf5+ {[%clk 0:00:03]} 66. Kxf5 {[%clk 0:00:06]}  Kb6 {[%clk 0:00:03]} 67. Nd3 {[%clk 0:00:03]}  Ka5 {[%clk 0:00:04]} 68. Ke4 {[%clk 0:00:02]}  Kxa4 {[%clk 0:00:04]} 69. Kd5 {[%clk 0:00:02]}  Kb3 {[%clk 0:00:04]} 70. Nxc5+ {[%clk 0:00:00]}  Bxc5 {[%clk 0:00:05]} 71. Kxc5 {[%clk 0:00:01]}  a5 {[%clk 0:00:05]} 72. Kd5 {[%clk 0:00:02]}  a4 {[%clk 0:00:06]} 73. c5 {[%clk 0:00:03]}  a3 {[%clk 0:00:07]} 74. c6 {[%clk 0:00:04]}  a2 {[%clk 0:00:08]} 75. c7 {[%clk 0:00:05]}  a1=Q {[%clk 0:00:09]} 76. c8=Q {[%clk 0:00:05]}  Qe5+ {[%clk 0:00:09]} 77. Kc6 {[%clk 0:00:06]}  Qc3+ {[%clk 0:00:09]} 78. Kd7 {[%clk 0:00:07]}  Qxc8+ {[%clk 0:00:10]} 0-1


[Site "https://www.chess.com"]

[Event "Titled Tuesday Blitz January 03 Early 2023"]
[White "Aaditya Dhingra"]
[Black "reevecanada"]
[WhiteFideId "25678191"]
[WhiteElo "2027"]
[BlackElo "2477"]
[Result "1-0"]
[Round "04"]
[TimeControl "180+2"]
[Date "2023.01.03"]
[WhiteClock "0:00:03"]
[BlackClock "0:00:07"]

1. e4 {[%clk 0:03:00]}  c5 {[%clk 0:02:57]} 2. Nc3 {[%clk 0:02:59]}  d6 {[%clk 0:02:56]} 3. g3 {[%clk 0:02:58]}  Nc6 {[%clk 0:02:55]} 4. Bg2 {[%clk 0:02:58]}  Nf6 {[%clk 0:02:55]} 5. Nge2 {[%clk 0:02:58]}  e6 {[%clk 0:02:55]} 6. O-O {[%clk 0:02:57]}  Be7 {[%clk 0:02:55]} 7. d4 {[%clk 0:02:55]}  O-O {[%clk 0:02:54]} 8. d5 {[%clk 0:02:52]}  Nb8 {[%clk 0:02:51]} 9. a4 {[%clk 0:02:49]}  a6 {[%clk 0:02:51]} 10. f4 {[%clk 0:02:45]}  b6 {[%clk 0:02:49]} 11. h3 {[%clk 0:02:41]}  Bb7 {[%clk 0:02:48]} 12. g4 {[%clk 0:02:41]}  Ne8 {[%clk 0:02:47]} 13. Ng3 {[%clk 0:02:39]}  Nd7 {[%clk 0:02:46]} 14. Be3 {[%clk 0:02:37]}  Nc7 {[%clk 0:02:45]} 15. g5 {[%clk 0:02:34]}  Ra7 {[%clk 0:02:37]} 16. Qd3 {[%clk 0:02:27]}  Qa8 {[%clk 0:02:33]} 17. h4 {[%clk 0:02:17]}  g6 {[%clk 0:02:29]} 18. h5 {[%clk 0:02:16]}  Re8 {[%clk 0:02:27]} 19. Rfd1 {[%clk 0:02:04]}  Rb8 {[%clk 0:02:11]} 20. hxg6 {[%clk 0:02:01]}  hxg6 {[%clk 0:02:12]} 21. dxe6 {[%clk 0:01:53]}  fxe6 {[%clk 0:02:09]} 22. Rd2 {[%clk 0:01:47]}  Rd8 {[%clk 0:02:03]} 23. e5 {[%clk 0:01:45]}  Nf8 {[%clk 0:01:57]} 24. Bxb7 {[%clk 0:01:42]}  Qxb7 {[%clk 0:01:56]} 25. exd6 {[%clk 0:01:38]}  Rxd6 {[%clk 0:01:55]} 26. Qe2 {[%clk 0:01:34]}  Rxd2 {[%clk 0:01:52]} 27. Bxd2 {[%clk 0:01:33]}  b5 {[%clk 0:01:35]} 28. Rf1 {[%clk 0:01:28]}  Qb6 {[%clk 0:01:23]} 29. Nge4 {[%clk 0:01:13]}  b4 {[%clk 0:01:16]} 30. Nd1 {[%clk 0:01:11]}  Nd5 {[%clk 0:01:15]} 31. Ndf2 {[%clk 0:01:06]}  Rc7 {[%clk 0:01:09]} 32. c4 {[%clk 0:01:01]}  bxc3 {[%clk 0:01:08]} 33. bxc3 {[%clk 0:00:57]}  c4 {[%clk 0:01:07]} 34. Kg2 {[%clk 0:00:56]}  Bd6 {[%clk 0:01:05]} 35. Ng4 {[%clk 0:00:53]}  Nh7 {[%clk 0:00:57]} 36. Rh1 {[%clk 0:00:47]}  Bxf4 {[%clk 0:00:55]} 37. Nef6+ {[%clk 0:00:41]}  Nhxf6 {[%clk 0:00:49]} 38. Nxf6+ {[%clk 0:00:37]}  Nxf6 {[%clk 0:00:49]} 39. Bxf4 {[%clk 0:00:36]}  Qb7+ {[%clk 0:00:30]} 40. Qf3 {[%clk 0:00:15]}  Qb2+ {[%clk 0:00:20]} 41. Kg3 {[%clk 0:00:15]}  Nh5+ {[%clk 0:00:16]} 42. Rxh5 {[%clk 0:00:14]}  gxh5 {[%clk 0:00:16]} 43. Bxc7 {[%clk 0:00:13]}  Qc2 {[%clk 0:00:14]} 44. Be5 {[%clk 0:00:10]}  Qg6 {[%clk 0:00:11]} 45. Qa8+ {[%clk 0:00:07]}  Kf7 {[%clk 0:00:09]} 46. Qb7+ {[%clk 0:00:07]}  Ke8 {[%clk 0:00:10]} 47. Qc8+ {[%clk 0:00:07]}  Kf7 {[%clk 0:00:11]} 48. Qd7+ {[%clk 0:00:07]}  Kf8 {[%clk 0:00:10]} 49. Bd6+ {[%clk 0:00:05]}  Kg8 {[%clk 0:00:11]} 50. Qd8+ {[%clk 0:00:05]}  Kh7 {[%clk 0:00:11]} 51. Qe7+ {[%clk 0:00:05]}  Kg8 {[%clk 0:00:12]} 52. Qf8+ {[%clk 0:00:05]}  Kh7 {[%clk 0:00:13]} 53. Qf6 {[%clk 0:00:03]}  Qd3+ {[%clk 0:00:12]} 54. Kh4 {[%clk 0:00:03]}  Qe4+ {[%clk 0:00:12]} 55. Kxh5 {[%clk 0:00:02]}  Qh1+ {[%clk 0:00:12]} 56. Kg4 {[%clk 0:00:02]}  Qg2+ {[%clk 0:00:13]} 57. Bg3 {[%clk 0:00:02]}  Qe4+ {[%clk 0:00:13]} 58. Kh3 {[%clk 0:00:02]}  Qh1+ {[%clk 0:00:11]} 59. Kg4 {[%clk 0:00:02]}  Qe4+ {[%clk 0:00:12]} 60. Qf4 {[%clk 0:00:03]}  Qe2+ {[%clk 0:00:11]} 61. Qf3 {[%clk 0:00:03]}  Qc2 {[%clk 0:00:12]} 62. g6+ {[%clk 0:00:03]}  Qxg6+ {[%clk 0:00:11]} 63. Kh3 {[%clk 0:00:04]}  Kg8 {[%clk 0:00:09]} 64. Bh4 {[%clk 0:00:04]}  Qc2 {[%clk 0:00:07]} 65. Qg2+ {[%clk 0:00:03]}  Kf7 {[%clk 0:00:07]} 66. Qxc2 {[%clk 0:00:03]} 1-0


[Site "https://www.chess.com"]

[Event "Titled Tuesday Blitz January 03 Early 2023"]
[White "Grot, Blazej"]
[Black "Yaran, Siar"]
[WhiteFideId "21835845"]
[BlackFideId "6323006"]
[WhiteElo "1990"]
[BlackElo "2288"]
[Result "0-1"]
[Round "04"]
[TimeControl "180+2"]
[Date "2023.01.03"]
[WhiteClock "0:00:02"]
[BlackClock "0:00:23"]

1. e4 {[%clk 0:03:00]}  e5 {[%clk 0:02:58]} 2. Nf3 {[%clk 0:03:00]}  Nc6 {[%clk 0:02:59]} 3. Bb5 {[%clk 0:02:58]}  a6 {[%clk 0:02:58]} 4. Ba4 {[%clk 0:02:58]}  Nf6 {[%clk 0:02:59]} 5. O-O {[%clk 0:02:57]}  Be7 {[%clk 0:02:59]} 6. Re1 {[%clk 0:02:57]}  b5 {[%clk 0:02:59]} 7. Bb3 {[%clk 0:02:56]}  O-O {[%clk 0:03:00]} 8. h3 {[%clk 0:02:55]}  Bb7 {[%clk 0:03:00]} 9. c3 {[%clk 0:02:55]}  d5 {[%clk 0:02:59]} 10. d3 {[%clk 0:02:47]}  dxe4 {[%clk 0:02:53]} 11. dxe4 {[%clk 0:02:46]}  Qxd1 {[%clk 0:02:53]} 12. Bxd1 {[%clk 0:02:45]}  Rfd8 {[%clk 0:02:51]} 13. Bc2 {[%clk 0:02:45]}  Nd7 {[%clk 0:02:49]} 14. Nbd2 {[%clk 0:02:42]}  f6 {[%clk 0:02:43]} 15. Nf1 {[%clk 0:02:36]}  Nc5 {[%clk 0:02:32]} 16. Ne3 {[%clk 0:02:33]}  Nd3 {[%clk 0:02:27]} 17. Rd1 {[%clk 0:02:28]}  Nxc1 {[%clk 0:02:26]} 18. Raxc1 {[%clk 0:02:26]}  Rxd1+ {[%clk 0:02:25]} 19. Rxd1 {[%clk 0:02:25]}  Rd8 {[%clk 0:02:25]} 20. Nd5 {[%clk 0:02:20]}  Bd6 {[%clk 0:02:24]} 21. a4 {[%clk 0:02:17]}  Ne7 {[%clk 0:02:19]} 22. Nxe7+ {[%clk 0:02:12]}  Bxe7 {[%clk 0:02:18]} 23. Rxd8+ {[%clk 0:02:10]}  Bxd8 {[%clk 0:02:19]} 24. axb5 {[%clk 0:02:10]}  axb5 {[%clk 0:02:20]} 25. Nd2 {[%clk 0:02:03]}  Kf8 {[%clk 0:02:16]} 26. Nb3 {[%clk 0:01:59]}  Be7 {[%clk 0:02:15]} 27. f3 {[%clk 0:01:50]}  Ke8 {[%clk 0:02:09]} 28. Kf2 {[%clk 0:01:48]}  Kd7 {[%clk 0:02:09]} 29. Ke2 {[%clk 0:01:47]}  c5 {[%clk 0:02:09]} 30. Na5 {[%clk 0:01:34]}  Ba8 {[%clk 0:02:08]} 31. Bd3 {[%clk 0:01:29]}  c4 {[%clk 0:02:08]} 32. Bc2 {[%clk 0:01:23]}  Bd8 {[%clk 0:02:08]} 33. b4 {[%clk 0:01:21]}  Bb6 {[%clk 0:02:02]} 34. g4 {[%clk 0:01:10]}  Ke6 {[%clk 0:02:01]} 35. h4 {[%clk 0:01:06]}  Kf7 {[%clk 0:02:00]} 36. h5 {[%clk 0:01:05]}  g6 {[%clk 0:02:00]} 37. hxg6+ {[%clk 0:01:04]}  Kxg6 {[%clk 0:01:54]} 38. Bd1 {[%clk 0:01:02]}  Kg5 {[%clk 0:01:54]} 39. Bc2 {[%clk 0:01:00]}  Kf4 {[%clk 0:01:45]} 40. Bb1 {[%clk 0:00:54]}  Kg5 {[%clk 0:01:44]} 41. Bc2 {[%clk 0:00:53]}  h5 {[%clk 0:01:45]} 42. gxh5 {[%clk 0:00:50]}  Kxh5 {[%clk 0:01:46]} 43. Bb1 {[%clk 0:00:33]}  Kg5 {[%clk 0:01:40]} 44. Bc2 {[%clk 0:00:32]}  Kf4 {[%clk 0:01:40]} 45. Bb1 {[%clk 0:00:31]}  f5 {[%clk 0:01:39]} 46. Bc2 {[%clk 0:00:30]}  fxe4 {[%clk 0:01:09]} 47. Bxe4 {[%clk 0:00:29]}  Bxe4 {[%clk 0:01:08]} 48. fxe4 {[%clk 0:00:30]}  Kxe4 {[%clk 0:01:09]} 49. Nc6 {[%clk 0:00:23]}  Kd5 {[%clk 0:00:59]} 50. Ne7+ {[%clk 0:00:22]}  Ke6 {[%clk 0:00:59]} 51. Ng6 {[%clk 0:00:18]}  e4 {[%clk 0:00:55]} 52. Nf4+ {[%clk 0:00:14]}  Kd6 {[%clk 0:00:53]} 53. Ng2 {[%clk 0:00:10]}  Bd8 {[%clk 0:00:51]} 54. Kd2 {[%clk 0:00:03]}  Bg5+ {[%clk 0:00:49]} 55. Ke2 {[%clk 0:00:02]}  Ke5 {[%clk 0:00:49]} 56. Ne1 {[%clk 0:00:01]}  Bf6 {[%clk 0:00:23]} 57. Nc2 {[%clk 0:00:02]}  Kf4 {[%clk 0:00:23]} 0-1


[Site "https://www.chess.com"]

[Event "Titled Tuesday Blitz January 03 Early 2023"]
[White "MIM06"]
[Black "Defend1r"]
[WhiteElo "2273"]
[BlackElo "2539"]
[Result "1-0"]
[Round "04"]
[TimeControl "180+2"]
[Date "2023.01.03"]
[WhiteClock "0:00:22"]
[BlackClock "0:00:01"]

1. e4 {[%clk 0:03:00]}  c5 {[%clk 0:03:00]} 2. Nf3 {[%clk 0:03:00]}  d6 {[%clk 0:03:00]} 3. Bb5+ {[%clk 0:03:01]}  Nd7 {[%clk 0:03:00]} 4. a4 {[%clk 0:02:59]}  a6 {[%clk 0:02:47]} 5. Be2 {[%clk 0:02:52]}  e6 {[%clk 0:02:45]} 6. Nc3 {[%clk 0:02:52]}  Ngf6 {[%clk 0:02:40]} 7. O-O {[%clk 0:02:52]}  Be7 {[%clk 0:02:40]} 8. d3 {[%clk 0:02:52]}  O-O {[%clk 0:02:39]} 9. Nd2 {[%clk 0:02:52]}  Qe8 {[%clk 0:02:36]} 10. f4 {[%clk 0:02:52]}  b6 {[%clk 0:02:35]} 11. Nc4 {[%clk 0:02:47]}  Bb7 {[%clk 0:02:34]} 12. Bf3 {[%clk 0:02:39]}  d5 {[%clk 0:02:29]} 13. exd5 {[%clk 0:02:36]}  exd5 {[%clk 0:02:30]} 14. Ne5 {[%clk 0:02:34]}  Qc8 {[%clk 0:02:25]} 15. Re1 {[%clk 0:02:30]}  Re8 {[%clk 0:02:24]} 16. Bd2 {[%clk 0:02:05]}  d4 {[%clk 0:02:24]} 17. Ne4 {[%clk 0:02:01]}  Nxe4 {[%clk 0:02:14]} 18. Bxe4 {[%clk 0:01:59]}  Bxe4 {[%clk 0:02:12]} 19. Rxe4 {[%clk 0:01:58]}  Nf6 {[%clk 0:02:12]} 20. Re1 {[%clk 0:01:57]}  Bd6 {[%clk 0:02:12]} 21. Qf3 {[%clk 0:01:56]}  h5 {[%clk 0:01:48]} 22. h3 {[%clk 0:01:50]}  h4 {[%clk 0:01:38]} 23. Re2 {[%clk 0:01:38]}  Qf5 {[%clk 0:01:33]} 24. Rae1 {[%clk 0:01:36]}  Rac8 {[%clk 0:01:28]} 25. Nc4 {[%clk 0:01:32]}  Rxe2 {[%clk 0:01:26]} 26. Rxe2 {[%clk 0:01:32]}  Rd8 {[%clk 0:01:16]} 27. Nxb6 {[%clk 0:01:17]}  Nh5 {[%clk 0:01:03]} 28. Nd5 {[%clk 0:01:05]}  Ng3 {[%clk 0:00:54]} 29. Re1 {[%clk 0:01:03]}  Bf8 {[%clk 0:00:51]} 30. Nb6 {[%clk 0:00:58]}  Rb8 {[%clk 0:00:43]} 31. Nc4 {[%clk 0:00:57]}  Qd7 {[%clk 0:00:39]} 32. b3 {[%clk 0:00:53]}  f5 {[%clk 0:00:33]} 33. Re5 {[%clk 0:00:52]}  Qf7 {[%clk 0:00:23]} 34. Be1 {[%clk 0:00:44]}  Qg6 {[%clk 0:00:22]} 35. Bxg3 {[%clk 0:00:36]}  hxg3 {[%clk 0:00:22]} 36. Qd5+ {[%clk 0:00:35]}  Kh7 {[%clk 0:00:21]} 37. Rxf5 {[%clk 0:00:36]}  Re8 {[%clk 0:00:05]} 38. Rh5+ {[%clk 0:00:35]}  Qh6 {[%clk 0:00:05]} 39. Rxh6+ {[%clk 0:00:29]}  Kxh6 {[%clk 0:00:05]} 40. Ne5 {[%clk 0:00:26]}  Kh7 {[%clk 0:00:06]} 41. Qf7 {[%clk 0:00:23]}  Re7 {[%clk 0:00:03]} 42. Qxf8 {[%clk 0:00:23]}  Rc7 {[%clk 0:00:03]} 43. Qf5+ {[%clk 0:00:22]}  Kg8 {[%clk 0:00:03]} 44. Qg5 {[%clk 0:00:21]}  Rb7 {[%clk 0:00:01]} 45. Qxg3 {[%clk 0:00:22]} 1-0


[Site "https://www.chess.com"]

[Event "Titled Tuesday Blitz January 03 Early 2023"]
[White "Baskakov, Egor"]
[Black "Goltseva, Ekaterina"]
[WhiteFideId "24197866"]
[BlackFideId "24173770"]
[WhiteElo "2215"]
[BlackElo "2283"]
[Result "1/2-1/2"]
[Round "04"]
[TimeControl "180+2"]
[Date "2023.01.03"]
[WhiteClock "0:00:07"]
[BlackClock "0:00:05"]

1. e4 {[%clk 0:03:00]}  e5 {[%clk 0:02:59]} 2. Nc3 {[%clk 0:03:00]}  Nf6 {[%clk 0:02:59]} 3. g3 {[%clk 0:03:01]}  d5 {[%clk 0:02:59]} 4. exd5 {[%clk 0:03:02]}  Nxd5 {[%clk 0:02:59]} 5. Bg2 {[%clk 0:03:02]}  Nxc3 {[%clk 0:03:00]} 6. bxc3 {[%clk 0:03:03]}  Nc6 {[%clk 0:03:01]} 7. d3 {[%clk 0:03:04]}  Bc5 {[%clk 0:03:00]} 8. Ne2 {[%clk 0:03:04]}  O-O {[%clk 0:03:01]} 9. O-O {[%clk 0:03:05]}  Be6 {[%clk 0:02:56]} 10. c4 {[%clk 0:03:04]}  Rb8 {[%clk 0:02:53]} 11. Be3 {[%clk 0:03:04]}  Bxe3 {[%clk 0:02:40]} 12. fxe3 {[%clk 0:03:05]}  Qg5 {[%clk 0:02:41]} 13. Qc1 {[%clk 0:02:56]}  h5 {[%clk 0:02:39]} 14. Nc3 {[%clk 0:02:54]}  h4 {[%clk 0:02:37]} 15. Ne4 {[%clk 0:02:54]}  Qh6 {[%clk 0:02:30]} 16. Qe1 {[%clk 0:02:24]}  h3 {[%clk 0:02:19]} 17. Bf3 {[%clk 0:02:19]}  Ne7 {[%clk 0:02:18]} 18. Qd2 {[%clk 0:02:08]}  b6 {[%clk 0:02:17]} 19. Rae1 {[%clk 0:02:04]}  f5 {[%clk 0:02:11]} 20. Nc3 {[%clk 0:02:03]}  Rbd8 {[%clk 0:02:04]} 21. Qe2 {[%clk 0:02:02]}  g5 {[%clk 0:01:46]} 22. Nb5 {[%clk 0:02:01]}  g4 {[%clk 0:01:42]} 23. Bh1 {[%clk 0:02:00]}  c6 {[%clk 0:01:35]} 24. Nc3 {[%clk 0:01:33]}  Bd7 {[%clk 0:01:05]} 25. d4 {[%clk 0:01:11]}  e4 {[%clk 0:00:57]} 26. a4 {[%clk 0:01:05]}  Be6 {[%clk 0:00:53]} 27. Rb1 {[%clk 0:01:02]}  Rb8 {[%clk 0:00:51]} 28. Rfd1 {[%clk 0:00:57]}  Rfd8 {[%clk 0:00:41]} 29. Ra1 {[%clk 0:00:47]}  a6 {[%clk 0:00:34]} 30. Rab1 {[%clk 0:00:46]}  Kg7 {[%clk 0:00:34]} 31. Kf2 {[%clk 0:00:41]}  Qf6 {[%clk 0:00:31]} 32. a5 {[%clk 0:00:35]}  bxa5 {[%clk 0:00:29]} 33. Na4 {[%clk 0:00:35]}  Qf7 {[%clk 0:00:27]} 34. c5 {[%clk 0:00:32]}  Bc4 {[%clk 0:00:25]} 35. Qe1 {[%clk 0:00:32]}  Nd5 {[%clk 0:00:25]} 36. Qxa5 {[%clk 0:00:31]}  Bb5 {[%clk 0:00:23]} 37. Nc3 {[%clk 0:00:28]}  Nxc3 {[%clk 0:00:20]} 38. Qxc3 {[%clk 0:00:29]}  Qd5 {[%clk 0:00:18]} 39. Rb3 {[%clk 0:00:26]}  Kg6 {[%clk 0:00:18]} 40. Rdb1 {[%clk 0:00:25]}  Ra8 {[%clk 0:00:17]} 41. Ra3 {[%clk 0:00:25]}  Rdb8 {[%clk 0:00:15]} 42. Qb4 {[%clk 0:00:21]}  Qc4 {[%clk 0:00:14]} 43. Qxc4 {[%clk 0:00:13]}  Bxc4 {[%clk 0:00:15]} 44. Rc1 {[%clk 0:00:13]}  a5 {[%clk 0:00:13]} 45. Ke1 {[%clk 0:00:13]}  Rb2 {[%clk 0:00:12]} 46. Kd2 {[%clk 0:00:14]}  Rb5 {[%clk 0:00:06]} 47. Kc3 {[%clk 0:00:14]}  Bd5 {[%clk 0:00:06]} 48. Rca1 {[%clk 0:00:14]}  Kf6 {[%clk 0:00:05]} 49. Kd2 {[%clk 0:00:14]}  Ke6 {[%clk 0:00:05]} 50. Ra4 {[%clk 0:00:14]}  Rab8 {[%clk 0:00:04]} 51. Rc1 {[%clk 0:00:08]}  Rb2 {[%clk 0:00:04]} 52. Raa1 {[%clk 0:00:08]}  R8b5 {[%clk 0:00:03]} 53. Kc3 {[%clk 0:00:07]}  R5b4 {[%clk 0:00:04]} 54. Kd2 {[%clk 0:00:06]}  a4 {[%clk 0:00:03]} 55. Kc3 {[%clk 0:00:07]}  Kf6 {[%clk 0:00:02]} 56. Ra3 {[%clk 0:00:07]}  Be6 {[%clk 0:00:02]} 57. Raa1 {[%clk 0:00:07]}  Bd5 {[%clk 0:00:02]} 58. Ra3 {[%clk 0:00:08]}  Bf7 {[%clk 0:00:02]} 59. Rxa4 {[%clk 0:00:06]}  Rxa4 {[%clk 0:00:02]} 60. Kxb2 {[%clk 0:00:06]}  Ra2+ {[%clk 0:00:02]} 61. Kc3 {[%clk 0:00:06]}  Bd5 {[%clk 0:00:02]} 62. Kd2 {[%clk 0:00:06]}  Ra3 {[%clk 0:00:03]} 63. Rb1 {[%clk 0:00:06]}  Ke6 {[%clk 0:00:03]} 64. Rc1 {[%clk 0:00:06]}  Kf6 {[%clk 0:00:04]} 65. Rb1 {[%clk 0:00:07]}  Ra2 {[%clk 0:00:04]} 66. Rc1 {[%clk 0:00:07]}  Ra3 {[%clk 0:00:05]} 1/2-1/2


[Site "https://www.chess.com"]